fUSD/lending_fUSD_20250612
["ID","MTS","AMOUNT","RATE_DAILY","PERIOD"]
[365479549,1749697870120,505.56687145,0.00017999,2]
[365479550,1749697870149,500.0,0.00017999,2]
[365479551,1749697870178,471.92402244,0.00017999,2]
[365479552,1749697870208,500.0,0.00017999,2]
[365479553,1749697870236,500.0,0.00017999,2]
[365479554,1749697870265,500.0,0.00017999,2]
[365479555,1749697870293,500.0,0.00017999,2]
[365479556,1749697870326,500.0,0.00017999,2]
[365479557,1749697870355,600.0,0.00017999,2]
[365479558,1749697870384,300.0,0.00017999,2]
[365479559,1749697870413,500.0,0.00017999,2]
[365479560,1749697886627,500.0,0.00017999,2]
[365479561,1749697887052,500.0,0.00017999,2]
[365479562,1749697887377,500.0,0.00017999,2]
[365479563,1749697887688,500.0,0.00017999,2]
[365479564,1749697888549,500.0,0.00017999,2]
[365479565,1749697889172,500.0,0.00017999,2]
[365479566,1749697889516,500.0,0.00017999,2]
[365479567,1749697889635,500.0,0.00017999,2]
[365479568,1749697889693,500.0,0.00017999,2]
[365479569,1749697889730,500.0,0.00017999,2]
[365479570,1749697889758,500.0,0.00017999,2]
[365479571,1749697889786,500.0,0.00017999,2]
[365479572,1749697889818,500.0,0.00017999,2]
[365479573,1749697889862,238.73776458,0.00017999,2]
[365479574,1749697897035,500.0,0.00017999,2]
[365479575,1749697914376,500.0,0.00017999,2]
[365479576,1749697914406,500.0,0.00017999,2]
[365479577,1749697914437,266.70144294,0.00017999,2]
[365479578,1749697914873,500.0,0.00017999,2]
[365479579,1749697914949,500.0,0.00017999,2]
[365479580,1749697915000,500.0,0.00017999,2]
[365479581,1749697915051,500.0,0.00017999,2]
[365479582,1749697915110,500.0,0.00017999,2]
[365479583,1749697915154,500.0,0.00017999,2]
[365479584,1749697915199,500.0,0.00017999,2]
[365479585,1749697915244,500.0,0.00017999,2]
[365479586,1749697915318,500.0,0.00017999,2]
[365479587,1749697915365,500.0,0.00017999,2]
[365479588,1749697915419,350.0,0.00017999,2]
[365479589,1749697915471,293.64298532,0.00017999,2]
[365479590,1749697915508,206.35701468,0.00017999,2]
[365479591,1749697915554,500.0,0.00017999,2]
[365479592,1749697915600,500.0,0.00017999,2]
[365479593,1749697915671,500.0,0.00017999,2]
[365479594,1749697915749,500.0,0.00017999,2]
[365479595,1749697915860,500.0,0.00017999,2]
[365479596,1749697915919,500.0,0.00017999,2]
[365479597,1749697916914,500.0,0.00017999,2]
[365479598,1749697919613,500.0,0.00017999,2]
[365479599,1749697930498,195.75525281,0.00017999,2]
[365479600,1749697949955,212.0,0.00024658,120]
[365479602,1749697966802,500.0,0.00016384,2]
[365479603,1749697981263,431.76,0.000175,7]
[365479605,1749698052850,206.0,0.00017538,2]
[365479606,1749698071724,216.32,0.00013699,2]
[365479608,1749698083454,490.0,0.00038123,120]
[365479613,1749698184708,490.06588599,0.00038123,120]
[365479615,1749698280750,2844.91,0.00038123,50]
[365479616,1749698283424,1958.17,0.00038123,120]
[365479619,1749698358780,490.0,0.00038123,120]
[365479620,1749698400455,490.0,0.00038104,120]
[365479621,1749698450153,1501.84299549,0.00038104,120]
[365479624,1749698504668,22846.71586172,0.0002,30]
[365479625,1749698566588,490.0,0.00038104,120]
[365479626,1749698576642,199.63,0.0001797,2]
[365479628,1749698583270,1536.8018825,0.0002,120]
[365479629,1749698585235,75040.43273631,0.00038104,50]
[365479630,1749698585400,253.01,0.00017965,2]
[365479631,1749698586248,75040.43273631,0.00038104,50]
[365479632,1749698586358,75040.43273631,0.00038104,50]
[365479633,1749698593157,26720.72933737,0.00038104,50]
[365479634,1749698593452,26720.72933737,0.00038104,50]
[365479635,1749698593787,26720.72933737,0.00038104,50]
[365479636,1749698599670,319.69566022,0.00038104,50]
[365479637,1749698599919,319.69566022,0.00038104,50]
[365479638,1749698600215,319.69566022,0.00038104,50]
[365479639,1749698605563,3948.55818043,0.00038104,50]
[365479640,1749698605851,3948.55818043,0.00038104,50]
[365479641,1749698606134,3948.55818043,0.00038104,50]
[365479642,1749698659996,9206.1769623,0.00038104,50]
[365479643,1749698660163,9206.1769623,0.00038104,50]
[365479644,1749698660346,9206.1769623,0.00038104,50]
[365479645,1749698667227,468.43287607,0.00038104,50]
[365479646,1749698667598,468.43287607,0.00038104,50]
[365479647,1749698667904,468.43287607,0.00038104,50]
[365479648,1749698674691,12989.71618108,0.00038104,50]
[365479649,1749698674945,12989.71618108,0.00038104,50]
[365479650,1749698675229,12989.71618108,0.00038104,50]
[365479651,1749698707552,500.0,0.00038114,120]
[365479652,1749698707825,500.0,0.00038114,120]
[365479653,1749698708088,538.23412244,0.00038114,120]
[365479654,1749698718225,-250.0,0.00018097,2]
[365479655,1749698718250,-34.0,0.00018127,2]
[365479656,1749698726194,8936.74624759,0.00016,2]
[365479657,1749698727598,1972.489123,0.0002465,120]
[365479658,1749698728133,978.33491686,0.00038114,120]
[365479659,1749698728699,434.10889284,0.00023,120]
[365479660,1749698733050,421.68229922,0.0002,120]
[365479661,1749698742803,-175.21,0.00018036,2]
[365479662,1749698745615,-200.0,0.00018036,2]
[365479663,1749698747545,-305.08335588,0.00018036,2]
[365479664,1749698747787,500.0,0.00016384,2]
[365479665,1749698752366,-241.23923776,0.00018036,2]
[365479666,1749698755285,-277.13221236,0.00018036,2]
[365479667,1749698756917,-8.74417,0.00018036,2]
[365479668,1749698766930,10191.8648189,0.00038114,120]
[365479669,1749698768545,407017.1718,0.00038114,50]
[365479674,1749698772342,206.0,0.00017171,2]
[365479675,1749698783150,850.49353286,0.00038114,120]
[365479678,1749698827219,-150.99263433,0.00018051,2]
[365479685,1749698839081,-1047.67217167,0.00018051,2]
[365479686,1749698839102,-738.84012923,0.00018058,2]
[365479687,1749698839124,-44.40695211,0.00018142,2]
[365479688,1749698864590,605.16869655,0.00038114,120]
[365479690,1749698874683,2020.0,0.0002,120]
[365479695,1749698892562,918.85295349,0.0002465,120]
[365479697,1749698912077,1499.999998,0.00038114,120]
[365479698,1749698912425,4410.63390186,0.00038114,120]
[365479699,1749698914972,190.41545652,0.0002,120]
[365479700,1749698915574,988.17967164,0.0002465,120]
[365479702,1749698915881,2149.68643751,0.00038114,120]
[365479703,1749698923446,516.61907264,0.0001,120]
[365479704,1749698923824,800.0,0.00021,120]
[365479705,1749698926415,493.0,0.0002465,120]
[365479706,1749698927265,2983.33282689,0.00024657,120]
[365479707,1749698928065,986.32031607,0.000246,120]
[365479708,1749698928130,7215.69727096,0.00038114,120]
[365479709,1749698928186,1003.50654223,0.000246,120]
[365479710,1749698941660,527.83,0.00015978,2]
[365479724,1749699031773,-205.59304789,0.00018142,2]
[365479726,1749699031784,-103.98472991,0.00018158,2]
[365479731,1749699031881,-79.73527009,0.00018158,2]
[365479732,1749699031892,-150.0,0.0001816,7]
[365479733,1749699031902,-200.0,0.00018178,2]
[365479734,1749699031911,-666.0,0.00018178,2]
[365479735,1749699031921,-1957.856,0.00018185,2]
[365479736,1749699031931,-207.4,0.00018185,2]
[365479737,1749699031940,-2030.296672,0.0001824,2]
[365479738,1749699031949,-1200.0,0.00018241,2]
[365479739,1749699031959,-527.83,0.00018242,2]
[365479740,1749699031968,-300.0,0.00018249,2]
[365479741,1749699031977,-2105.41764886,0.00018295,2]
[365479742,1749699031988,-300.0,0.00018305,2]
[365479743,1749699031997,-335.43,0.00018316,2]
[365479744,1749699032007,-1626.28020901,0.0001835,2]
[365479745,1749699032017,-5732.5894594,0.00018361,2]
[365479746,1749699032027,-232.03173508,0.00018529,2]
[365479747,1749699032036,-796.98,0.000186,2]
[365479748,1749699032050,-300.31,0.00018657,2]
[365479749,1749699032059,-796.98,0.000187,2]
[365479750,1749699032069,-796.98,0.000187,2]
[365479751,1749699032078,-796.98,0.000187,2]
[365479752,1749699032088,-796.98,0.000187,2]
[365479753,1749699032097,-1593.52,0.000187,2]
[365479754,1749699032107,-796.98,0.000187,2]
[365479755,1749699032116,-302.64,0.00018711,2]
[365479756,1749699032126,-164.04,0.00018781,2]
[365479757,1749699032136,-502.0,0.00018795,2]
[365479758,1749699032145,-206.0,0.00018884,4]
[365479759,1749699032154,-488.67131438,0.000189,2]
[365479761,1749699032163,-488.67131415,0.00018934,2]
[365479762,1749699032173,-488.67131415,0.00018969,2]
[365479763,1749699032182,-7474.71626688,0.00018978,2]
[365479764,1749699032193,-227.8678,0.00018978,2]
[365479765,1749699032203,-482.91,0.00019,2]
[365479766,1749699032212,-992.1,0.00019,2]
[365479768,1749699032222,-992.1,0.00019,2]
[365479770,1749699032232,-992.1,0.00019,2]
[365479771,1749699032242,-992.1,0.00019,2]
[365479772,1749699032251,-992.1,0.00019,2]
[365479773,1749699032261,-250.0,0.00019,2]
[365479774,1749699032275,-488.67131415,0.00019003,2]
[365479775,1749699032284,-151.0,0.00019013,2]
[365479776,1749699032294,-156.07760261,0.00019014,2]
[365479777,1749699032304,-156.07760261,0.00019014,2]
[365479778,1749699032314,-250.0,0.00019021,2]
[365479779,1749699032323,-186.44803105,0.00019035,2]
[365479780,1749699032333,-488.67131415,0.00019038,2]
[365479781,1749699032343,-186.43,0.00019042,2]
[365479782,1749699032354,-7474.71626688,0.00019044,2]
[365479783,1749699032363,-796.98,0.00019061,2]
[365479784,1749699032373,-564.53,0.00019061,2]
[365479785,1749699032384,-488.67131415,0.00019072,2]
[365479787,1749699032393,-302.74,0.00019077,2]
[365479789,1749699032403,-500.0,0.00019077,2]
[365479790,1749699032413,-349.57451155,0.00019077,2]
[365479791,1749699032422,-500.0,0.00019077,2]
[365479792,1749699032431,-500.0,0.00019077,2]
[365479793,1749699032441,-500.0,0.00019077,2]
[365479794,1749699032451,-500.0,0.00019077,2]
[365479796,1749699032461,-500.0,0.00019077,2]
[365479797,1749699032470,-213.90095876,0.00019077,2]
[365479799,1749699032480,-179.77475046,0.00019078,2]
[365479801,1749699032490,-1902.656013,0.00019078,2]
[365479802,1749699032517,-451.03283386,0.00019078,2]
[365479803,1749699032527,-219.59839397,0.00019078,2]
[365479804,1749699032537,-1000.0,0.00019078,2]
[365479805,1749699032548,-9121.32703371,0.00019078,2]
[365479806,1749699032564,-8465.41336629,0.00019078,2]
[365479807,1749699032574,-77197.48368239,0.00019078,2]
[365479808,1749699032585,-578.77539423,0.00019078,2]
[365479812,1749699037774,-507.28943559,0.0001901,2]
[365479814,1749699037785,-19459.26362338,0.00019078,2]
[365479816,1749699037795,-5000.0,0.00019078,2]
[365479818,1749699037805,-1002.30771141,0.00019087,2]
[365479819,1749699037815,-11862.37599647,0.000191,2]
[365479820,1749699037825,-515.9,0.00019105,2]
[365479821,1749699037835,-488.67131415,0.00019107,2]
[365479822,1749699037844,-7474.71626688,0.0001911,2]
[365479823,1749699037853,-500.0,0.0001911,2]
[365479824,1749699037863,-8994.00060138,0.00019114,2]
[365479825,1749699037873,-500.0,0.00019124,2]
[365479826,1749699037882,-2353.68884677,0.00019133,2]
[365479827,1749699037892,-488.67131415,0.00019141,2]
[365479828,1749699037902,-156.07760261,0.00019151,2]
[365479829,1749699037911,-156.07760261,0.00019151,2]
[365479830,1749699037920,-515.9,0.00019168,2]
[365479831,1749699037930,-515.9,0.00019168,2]
[365479832,1749699037939,-515.9,0.00019168,2]
[365479833,1749699037949,-515.9,0.00019168,2]
[365479834,1749699037959,-154.08,0.00019168,2]
[365479835,1749699037971,-501.58186371,0.00019173,2]
[365479836,1749699037982,-507.70763843,0.00019173,2]
[365479837,1749699037991,-500.0,0.00019173,2]
[365479838,1749699038001,-500.0,0.00019173,2]
[365479839,1749699038010,-500.0,0.00019173,2]
[365479840,1749699038020,-7474.71626688,0.00019176,2]
[365479841,1749699038029,-488.67131415,0.00019176,2]
[365479842,1749699038040,-189.40016049,0.00019177,2]
[365479843,1749699038049,-257.70603933,0.00019177,2]
[365479844,1749699038060,-247.91523901,0.00019177,2]
[365479845,1749699038070,-169.80425767,0.00019177,2]
[365479846,1749699038080,-1211.951933,0.00019178,2]
[365479847,1749699038089,-1211.951933,0.00019178,2]
[365479848,1749699038099,-196.024625,0.00019178,2]
[365479849,1749699038108,-196.024625,0.00019178,2]
[365479850,1749699038118,-196.024625,0.00019178,2]
[365479851,1749699038128,-196.024625,0.00019178,2]
[365479852,1749699038138,-382.244969,0.00019178,2]
[365479853,1749699038148,-382.244969,0.00019178,2]
[365479854,1749699038158,-382.244969,0.00019178,2]
[365479855,1749699038167,-382.244969,0.00019178,2]
[365479856,1749699038176,-460.68934451,0.00019178,2]
[365479857,1749699038186,-218.882791,0.00019178,2]
[365479858,1749699038196,-1176.798405,0.00019178,2]
[365479859,1749699038206,-218.882791,0.00019178,2]
[365479860,1749699038216,-1176.798405,0.00019178,2]
[365479861,1749699038225,-218.882791,0.00019178,2]
[365479862,1749699038235,-1176.798405,0.00019178,2]
[365479863,1749699038245,-218.882791,0.00019178,2]
[365479864,1749699038254,-1176.798405,0.00019178,2]
[365479865,1749699038267,-486.71016964,0.00019178,2]
[365479866,1749699038276,-481.89631922,0.00019178,2]
[365479867,1749699038286,-490.88560726,0.00019178,2]
[365479868,1749699038295,-482.92157139,0.00019178,2]
[365479869,1749699038307,-293.7235012,0.00019178,2]
[365479870,1749699038316,-484.27301267,0.00019178,2]
[365479871,1749699038326,-2125.637093,0.00019178,2]
[365479872,1749699038335,-160.484491,0.00019178,2]
[365479873,1749699038345,-490.0,0.00019178,2]
[365479874,1749699038354,-523.11124289,0.00019178,2]
[365479875,1749699038363,-490.0,0.00019178,2]
[365479876,1749699038373,-196.44208,0.00019178,2]
[365479877,1749699038382,-491.34623244,0.00019178,2]
[365479878,1749699038392,-496.67290191,0.00019178,2]
[365479879,1749699038401,-485.29271744,0.00019178,2]
[365479880,1749699038411,-1405.192266,0.00019178,2]
[365479881,1749699038422,-490.0,0.00019178,2]
[365479882,1749699038432,-460.0,0.00019178,2]
[365479883,1749699038442,-504.84694203,0.00019178,2]
[365479885,1749699038451,-491.42301576,0.00019178,2]
[365479887,1749699038461,-466.50324823,0.00019178,2]
[365479888,1749699038471,-496.96168614,0.00019178,2]
[365479889,1749699038480,-480.36698263,0.00019178,2]
[365479890,1749699038490,-490.0,0.00019178,2]
[365479891,1749699038499,-470.77687651,0.00019178,2]
[365479892,1749699038509,-499.45059277,0.00019178,2]
[365479893,1749699038518,-450.29289313,0.00019178,2]
[365479894,1749699038528,-472.9264343,0.00019178,2]
[365479895,1749699038538,-480.19024829,0.00019178,2]
[365479896,1749699038548,-481.32503286,0.00019178,2]
[365479897,1749699038558,-490.0,0.00019178,2]
[365479898,1749699038567,-524.33689183,0.00019178,2]
[365479899,1749699038577,-497.7423172,0.00019178,2]
[365479900,1749699038586,-490.0,0.00019178,2]
[365479901,1749699038595,-493.54358182,0.00019178,2]
[365479902,1749699038605,-496.5518472,0.00019178,2]
[365479903,1749699038615,-490.0,0.00019178,2]
[365479904,1749699038624,-490.0,0.00019178,2]
[365479905,1749699038634,-490.0,0.00019178,2]
[365479906,1749699038643,-464.52166075,0.00019178,2]
[365479907,1749699038652,-476.16967407,0.00019178,2]
[365479908,1749699038662,-490.0,0.00019178,2]
[365479909,1749699038672,-490.0,0.00019178,2]
[365479910,1749699038682,-490.0,0.00019178,2]
[365479911,1749699038691,-490.0,0.00019178,2]
[365479912,1749699038700,-477.10173532,0.00019178,2]
[365479913,1749699038710,-485.58631649,0.00019178,2]
[365479914,1749699038719,-442.69485338,0.00019178,2]
[365479915,1749699038729,-490.0,0.00019178,2]
[365479916,1749699038739,-490.0,0.00019178,2]
[365479917,1749699038748,-473.82432097,0.00019178,2]
[365479918,1749699038758,-490.0,0.00019178,2]
[365479919,1749699038767,-250.0,0.00019178,2]
[365479920,1749699038777,-490.0,0.00019178,2]
[365479921,1749699038786,-490.0,0.00019178,2]
[365479922,1749699038795,-480.0,0.00019178,2]
[365479923,1749699038806,-490.0,0.00019178,2]
[365479924,1749699038815,-490.0,0.00019178,2]
[365479925,1749699038825,-446.82297708,0.00019178,2]
[365479926,1749699038835,-490.0,0.00019178,2]
[365479927,1749699038844,-490.0,0.00019178,2]
[365479928,1749699038854,-504.38279221,0.00019178,2]
[365479929,1749699038863,-499.25861241,0.00019178,2]
[365479930,1749699038873,-490.0,0.00019178,2]
[365479931,1749699038882,-507.08739217,0.00019178,2]
[365479932,1749699038891,-496.88083956,0.00019178,2]
[365479933,1749699038901,-496.62121812,0.00019178,2]
[365479934,1749699038910,-490.0,0.00019178,2]
[365479935,1749699038920,-500.66114983,0.00019178,2]
[365479936,1749699038930,-502.0229953,0.00019178,2]
[365479937,1749699038940,-505.91478955,0.00019178,2]
[365479938,1749699038949,-170.39960984,0.00019178,2]
[365479939,1749699038958,-490.0,0.00019178,2]
[365479940,1749699038967,-490.0,0.00019178,2]
[365479941,1749699038977,-474.84442603,0.00019178,2]
[365479942,1749699038986,-490.0,0.00019178,2]
[365479943,1749699038995,-490.0,0.00019178,2]
[365479944,1749699039005,-490.0,0.00019178,2]
[365479945,1749699039015,-496.28235516,0.00019178,2]
[365479946,1749699039025,-472.40934845,0.00019178,2]
[365479947,1749699039037,-490.0,0.00019178,2]
[365479948,1749699039048,-507.56180682,0.00019178,2]
[365479949,1749699039058,-503.58294566,0.00019178,2]
[365479950,1749699039067,-490.0,0.00019178,2]
[365479951,1749699039077,-424.09963748,0.00019178,2]
[365479952,1749699039086,-490.0,0.00019178,2]
[365479953,1749699039098,-596.27843342,0.00019178,2]
[365479954,1749699039109,-500.13135186,0.00019178,2]
[365479955,1749699039118,-500.69213574,0.00019178,2]
[365479956,1749699039128,-495.12870359,0.00019178,2]
[365479957,1749699039137,-490.0,0.00019178,2]
[365479958,1749699039147,-405.635929,0.00019178,2]
[365479959,1749699039158,-490.0,0.00019178,2]
[365479960,1749699039167,-494.0907078,0.00019178,2]
[365479961,1749699039177,-157.262618,0.00019178,2]
[365479962,1749699039186,-1360.902986,0.00019178,2]
[365479963,1749699039196,-490.0,0.00019178,2]
[365479964,1749699039206,-490.0,0.00019178,2]
[365479965,1749699039215,-1360.902986,0.00019178,2]
[365479966,1749699039227,-490.0,0.00019178,2]
[365479967,1749699039237,-520.98267877,0.00019178,2]
[365479968,1749699039247,-495.99270094,0.00019178,2]
[365479969,1749699039257,-501.38944447,0.00019178,2]
[365479970,1749699039270,-1360.902986,0.00019178,2]
[365479971,1749699039279,-1360.902986,0.00019178,2]
[365479972,1749699039289,-331.82691418,0.00019178,2]
[365479973,1749699039299,-490.0,0.00019178,2]
[365479974,1749699039309,-383.7082432,0.00019178,2]
[365479975,1749699039318,-489.2941208,0.00019178,2]
[365479976,1749699039328,-490.0,0.00019178,2]
[365479977,1749699039337,-490.0,0.00019178,2]
[365479978,1749699039349,-490.0,0.00019178,2]
[365479979,1749699039358,-490.0,0.00019178,2]
[365479980,1749699039368,-490.0,0.00019178,2]
[365479981,1749699039377,-490.0,0.00019178,2]
[365479982,1749699039388,-490.0,0.00019178,2]
[365479983,1749699039397,-490.0,0.00019178,2]
[365479984,1749699039407,-490.0,0.00019178,2]
[365479985,1749699039416,-500.49977424,0.00019178,2]
[365479986,1749699039425,-490.0,0.00019178,2]
[365479987,1749699039435,-490.0,0.00019178,2]
[365479988,1749699039444,-490.0,0.00019178,2]
[365479989,1749699039454,-490.0,0.00019178,2]
[365479990,1749699039464,-490.0,0.00019178,2]
[365479991,1749699039474,-390.9635578,0.00019178,2]
[365479992,1749699039484,-496.94837329,0.00019178,2]
[365479993,1749699039494,-380.0,0.00019178,2]
[365479994,1749699039505,-490.0,0.00019178,2]
[365479995,1749699039514,-490.0,0.00019178,2]
[365479996,1749699039524,-344.17063273,0.00019178,2]
[365479997,1749699039533,-490.0,0.00019178,2]
[365479998,1749699039544,-490.0,0.00019178,2]
[365479999,1749699039554,-490.0,0.00019178,2]
[365480000,1749699039564,-490.0,0.00019178,2]
[365480001,1749699039574,-490.0,0.00019178,2]
[365480002,1749699039584,-490.0,0.00019178,2]
[365480003,1749699039594,-472.48991062,0.00019178,2]
[365480004,1749699039604,-490.0,0.00019178,2]
[365480005,1749699039614,-443.59015299,0.00019178,2]
[365480006,1749699039623,-490.0,0.00019178,2]
[365480007,1749699039633,-490.0,0.00019178,2]
[365480008,1749699039643,-438.28977662,0.00019178,2]
[365480009,1749699039652,-490.0,0.00019178,2]
[365480010,1749699039662,-401.03369031,0.00019178,2]
[365480011,1749699039672,-490.0,0.00019178,2]
[365480012,1749699039681,-490.0,0.00019178,2]
[365480013,1749699039691,-490.0,0.00019178,2]
[365480014,1749699039701,-490.0,0.00019178,2]
[365480015,1749699039710,-490.0,0.00019178,2]
[365480016,1749699039720,-190.76764,0.00019178,2]
[365480017,1749699039729,-490.0,0.00019178,2]
[365480018,1749699039739,-383.61260498,0.00019178,2]
[365480019,1749699039749,-472.63027869,0.00019178,2]
[365480020,1749699039758,-490.0,0.00019178,2]
[365480021,1749699039768,-490.0,0.00019178,2]
[365480022,1749699039778,-502.41049519,0.00019178,2]
[365480023,1749699039788,-490.0,0.00019178,2]
[365480024,1749699039797,-463.50484588,0.00019178,2]
[365480025,1749699039808,-490.0,0.00019178,2]
[365480026,1749699039818,-557.71231897,0.00019178,2]
[365480027,1749699039828,-397.05373922,0.00019178,2]
[365480028,1749699039837,-490.0,0.00019178,2]
[365480029,1749699039847,-597.18,0.00019178,2]
[365480030,1749699039857,-490.0,0.00019178,2]
[365480031,1749699039867,-490.0,0.00019178,2]
[365480032,1749699039876,-489.64702349,0.00019178,2]
[365480033,1749699039886,-472.46411381,0.00019178,2]
[365480034,1749699039895,-460.0,0.00019178,2]
[365480035,1749699039904,-490.0,0.00019178,2]
[365480036,1749699039914,-490.0,0.00019178,2]
[365480037,1749699039923,-490.0,0.00019178,2]
[365480038,1749699039932,-490.0,0.00019178,2]
[365480039,1749699039942,-490.0,0.00019178,2]
[365480040,1749699039952,-419.41897029,0.00019178,2]
[365480041,1749699039961,-506.85161622,0.00019178,2]
[365480042,1749699039971,-422.16023556,0.00019178,2]
[365480043,1749699040021,-77.83976444,0.00019178,2]
[365480044,1749699040031,-323.06505294,0.00019178,2]
[365480045,1749699040056,-166.93494706,0.00019178,2]
[365480046,1749699040066,-388.86511213,0.00019178,2]
[365480047,1749699040076,-414.73808137,0.00019178,2]
[365480048,1749699040086,-470.0,0.00019178,2]
[365480049,1749699040095,-508.58788704,0.00019178,2]
[365480050,1749699040106,-490.0,0.00019178,2]
[365480051,1749699040116,-239.50835831,0.00019178,2]
[365480052,1749699040125,-500.0,0.00019178,2]
[365480053,1749699040135,-500.0,0.00019178,2]
[365480054,1749699040144,-166.65710813,0.00019178,2]
[365480055,1749699040154,-500.0,0.00019178,2]
[365480056,1749699040164,-500.0,0.00019178,2]
[365480057,1749699040173,-500.0,0.00019178,2]
[365480058,1749699040184,-500.0,0.00019178,2]
[365480059,1749699040194,-500.0,0.00019178,2]
[365480060,1749699040204,-490.0,0.00019178,2]
[365480061,1749699040214,-490.0,0.00019178,2]
[365480062,1749699040224,-490.0,0.00019178,2]
[365480063,1749699040233,-490.0,0.00019178,2]
[365480064,1749699040243,-490.0,0.00019178,2]
[365480065,1749699040252,-490.0,0.00019178,2]
[365480066,1749699040265,-523.49598802,0.00019178,2]
[365480067,1749699040275,-490.0,0.00019178,2]
[365480068,1749699040284,-368.35625801,0.00019178,2]
[365480069,1749699040294,-460.71634872,0.00019178,2]
[365480070,1749699040304,-399.97254403,0.00019178,2]
[365480071,1749699040314,-490.0,0.00019178,2]
[365480072,1749699040323,-409.14689411,0.00019178,2]
[365480073,1749699040333,-490.0,0.00019178,2]
[365480074,1749699040343,-499.04450809,0.00019178,2]
[365480075,1749699040353,-397.95709083,0.00019178,2]
[365480076,1749699040362,-490.0,0.00019178,2]
[365480077,1749699040372,-490.0,0.00019178,2]
[365480078,1749699040381,-500.0,0.00019178,2]
[365480079,1749699040391,-490.0,0.00019178,2]
[365480080,1749699040400,-490.0,0.00019178,2]
[365480081,1749699040410,-503.58284473,0.00019178,2]
[365480082,1749699040419,-460.33510162,0.00019178,2]
[365480083,1749699040428,-474.53341236,0.00019178,2]
[365480084,1749699040438,-490.0,0.00019178,2]
[365480085,1749699040447,-163.086027,0.00019178,2]
[365480086,1749699040457,-254.68031053,0.00019178,2]
[365480087,1749699040466,-1000.0,0.00019178,2]
[365480088,1749699040475,-511.26517929,0.00019178,2]
[365480089,1749699040485,-490.0,0.00019178,2]
[365480090,1749699040494,-165.509118,0.00019178,2]
[365480091,1749699040505,-500.0,0.00019178,2]
[365480092,1749699040514,-505.64542807,0.00019178,2]
[365480093,1749699040524,-490.0,0.00019178,2]
[365480094,1749699040533,-500.0,0.00019178,2]
[365480095,1749699040542,-500.0,0.00019178,2]
[365480096,1749699040552,-500.0,0.00019178,2]
[365480097,1749699040562,-490.0,0.00019178,2]
[365480098,1749699040571,-490.0,0.00019178,2]
[365480099,1749699040581,-490.0,0.00019178,2]
[365480100,1749699040590,-469.9659604,0.00019178,2]
[365480101,1749699040600,-435.49704536,0.00019178,2]
[365480102,1749699040609,-464.36087139,0.00019178,2]
[365480103,1749699040618,-500.0,0.00019178,2]
[365480104,1749699040628,-491.02128207,0.00019178,2]
[365480105,1749699040637,-490.0,0.00019178,2]
[365480106,1749699040646,-490.0,0.00019178,2]
[365480107,1749699040657,-484.71105888,0.00019178,2]
[365480108,1749699040666,-490.0,0.00019178,2]
[365480109,1749699040676,-579.41385887,0.00019178,2]
[365480110,1749699040685,-474.75723794,0.00019178,2]
[365480111,1749699040695,-490.0,0.00019178,2]
[365480112,1749699040704,-513.47472359,0.00019178,2]
[365480113,1749699040713,-490.0,0.00019178,2]
[365480114,1749699040722,-514.41,0.00019178,2]